fUSD/lending_fUSD_20240708
["ID","MTS","AMOUNT","RATE_DAILY","PERIOD"]
[331516179,1720445880626,-502.56929396,0.0005041,120]
[331516180,1720445880719,-500.0,0.0005041,120]
[331516181,1720445880809,-801.02,0.0005041,120]
[331516182,1720445880899,-500.0,0.0005041,120]
[331516183,1720445880992,-500.0,0.0005041,120]
[331516184,1720445881084,-245.93426715,0.0005041,120]
[331516185,1720445881178,-391.79485684,0.0005041,120]
[331516186,1720445881269,-500.0,0.0005041,120]
[331516187,1720445881357,-500.0,0.0005041,120]
[331516188,1720445881450,-500.0,0.0005041,120]
[331516189,1720445881540,-472.62568055,0.0005041,120]
[331516190,1720445881632,-500.0,0.0005041,120]
[331516191,1720445881719,-579.45246679,0.0005041,120]
[331516192,1720445881808,-571.2,0.0005041,120]
[331516193,1720445881907,-500.0,0.0005041,120]
[331516194,1720445882238,-507.56,0.0005041,120]
[331516195,1720445882330,-500.0,0.0005041,120]
[331516196,1720445882424,-500.0,0.0005041,120]
[331516197,1720445882519,-500.0,0.0005041,120]
[331516198,1720445882614,-913.07,0.0005041,120]
[331516199,1720445882703,-500.0,0.0005041,120]
[331516200,1720445882788,-500.0,0.0005041,120]
[331516201,1720445882873,-958.56,0.0005041,120]
[331516202,1720445882966,-500.0,0.0005041,120]
[331516203,1720445883060,-150.05450298,0.00050629,60]
[331516204,1720445883149,-500.0,0.00050684,120]
[331516205,1720445883256,-500.0,0.00050684,120]
[331516206,1720445883362,-500.0,0.00050684,120]
[331516207,1720445883470,-500.0,0.00050684,120]
[331516208,1720445883565,-291.9,0.00050684,120]
[331516209,1720445883659,-500.0,0.00050684,120]
[331516210,1720445883762,-500.0,0.00050684,120]
[331516211,1720445883855,-500.0,0.00050684,120]
[331516212,1720445883949,-1546.12,0.00050684,120]
[331516213,1720445884044,-500.0,0.00050684,120]
[331516214,1720445884141,-500.0,0.00050684,120]
[331516215,1720445884236,-500.0,0.00050684,120]
[331516216,1720445884338,-500.0,0.00050684,120]
[331516217,1720445884430,-500.0,0.00050684,120]
[331516218,1720445884523,-505.36,0.00050684,120]
[331516219,1720445884617,-500.0,0.00050684,120]
[331516220,1720445884712,-512.32,0.00050684,120]
[331516221,1720445884812,-500.0,0.00050684,120]
[331516222,1720445884916,-870.97,0.00050684,120]
[331516223,1720445885022,-500.0,0.00050684,120]
[331516224,1720445885120,-343.93868264,0.00050684,120]
[331516225,1720445885221,-500.0,0.00050684,120]
[331516226,1720445885322,-500.0,0.00050684,120]
[331516227,1720445885422,-500.0,0.00050684,120]
[331516228,1720445885518,-500.0,0.00050684,120]
[331516229,1720445885622,-500.0,0.00050684,120]
[331516230,1720445885718,-500.0,0.00050684,120]
[331516231,1720445885810,-801.02,0.00050684,120]
[331516232,1720445885905,-500.0,0.00050684,120]
[331516233,1720445885996,-500.0,0.00050684,120]
[331516234,1720445886092,-500.0,0.00050684,120]
[331516235,1720445886190,-643.17721002,0.00050684,120]
[331516236,1720445886283,-500.0,0.00050684,120]
[331516237,1720445886379,-500.0,0.00050684,120]
[331516238,1720445886468,-1700.58,0.00050684,120]
[331516239,1720445886560,-571.2,0.00050684,120]
[331516240,1720445886656,-500.0,0.00050684,120]
[331516241,1720445886753,-507.56,0.00050684,120]
[331516242,1720445886851,-500.0,0.00050684,120]
[331516243,1720445886947,-500.0,0.00050684,120]
[331516244,1720445887042,-500.0,0.00050684,120]
[331516245,1720445887140,-500.0,0.00050684,120]
[331516246,1720445887238,-500.0,0.00050684,120]
[331516247,1720445887336,-958.56,0.00050684,120]
[331516248,1720445887432,-500.0,0.00050684,120]
[331516249,1720445887527,-1003.14,0.00050775,47]
[331516250,1720445887620,-167.24444756,0.00050848,60]
[331516251,1720445887713,-214.76863724,0.00050911,60]
[331516252,1720445887807,-500.0,0.00050958,120]
[331516253,1720445887903,-500.0,0.00050958,120]
[331516254,1720445888001,-500.0,0.00050958,120]
[331516255,1720445888092,-500.0,0.00050958,120]
[331516256,1720445888187,-291.9,0.00050958,120]
[331516257,1720445888296,-500.0,0.00050958,120]
[331516258,1720445888405,-500.0,0.00050958,120]
[331516259,1720445888517,-500.0,0.00050958,120]
[331516260,1720445888615,-1546.12,0.00050958,120]
[331516261,1720445888708,-500.0,0.00050958,120]
[331516262,1720445888800,-500.0,0.00050958,120]
[331516263,1720445888897,-500.0,0.00050958,120]
[331516264,1720445888995,-500.0,0.00050958,120]
[331516265,1720445889096,-500.0,0.00050958,120]
[331516266,1720445889236,-505.36,0.00050958,120]
[331516267,1720445889347,-500.0,0.00050958,120]
[331516268,1720445889452,-512.32,0.00050958,120]
[331516269,1720445889555,-500.0,0.00050958,120]
[331516270,1720445889653,-870.97,0.00050958,120]
[331516271,1720445889758,-500.0,0.00050958,120]
[331516272,1720445889857,-500.0,0.00050958,120]
[331516273,1720445889957,-500.0,0.00050958,120]
[331516274,1720445890054,-500.0,0.00050958,120]
[331516275,1720445890144,-500.0,0.00050958,120]
[331516276,1720445890239,-500.0,0.00050958,120]
[331516277,1720445890337,-500.0,0.00050958,120]
[331516278,1720445890433,-801.02,0.00050958,120]
[331516279,1720445890529,-500.0,0.00050958,120]
[331516280,1720445890623,-500.0,0.00050958,120]
[331516281,1720445890712,-500.0,0.00050958,120]
[331516282,1720445890797,-500.0,0.00050958,120]
[331516283,1720445890889,-500.0,0.00050958,120]
[331516284,1720445890978,-571.2,0.00050958,120]
[331516285,1720445891074,-500.0,0.00050958,120]
[331516286,1720445891174,-507.56,0.00050958,120]
[331516287,1720445891275,-500.0,0.00050958,120]
[331516288,1720445891371,-500.0,0.00050958,120]
[331516289,1720445891467,-500.0,0.00050958,120]
[331516290,1720445891556,-182.4,0.00050958,120]
[331516291,1720445891646,-500.0,0.00050958,120]
[331516292,1720445891737,-958.56,0.00050958,120]
[331516293,1720445891830,-500.0,0.00050958,120]
[331516294,1720445891923,-164.49309806,0.00050997,120]
[331516295,1720445892019,-50000.0,0.00051,41]
[331516296,1720445892113,-50000.0,0.00051,51]
[331516297,1720445892212,-5114.0,0.00051,120]
[331516298,1720445892309,-500.0,0.00051232,120]
[331516299,1720445892405,-500.0,0.00051232,120]
[331516300,1720445892496,-500.0,0.00051232,120]
[331516301,1720445892584,-500.0,0.00051232,120]
[331516302,1720445892679,-291.9,0.00051232,120]
[331516303,1720445892774,-153.08277548,0.00051232,120]
[331516304,1720445892869,-500.0,0.00051232,120]
[331516305,1720445892972,-500.0,0.00051232,120]
[331516306,1720445893066,-1546.12,0.00051232,120]
[331516307,1720445893156,-500.0,0.00051232,120]
[331516308,1720445893275,-500.0,0.00051232,120]
[331516309,1720445893386,-500.0,0.00051232,120]
[331516310,1720445893497,-500.0,0.00051232,120]
[331516311,1720445893604,-500.0,0.00051232,120]
[331516312,1720445893698,-505.36,0.00051232,120]
[331516313,1720445893790,-512.32,0.00051232,120]
[331516314,1720445893880,-500.0,0.00051232,120]
[331516315,1720445893974,-500.0,0.00051232,120]
[331516316,1720445894061,-870.97,0.00051232,120]
[331516317,1720445894153,-500.0,0.00051232,120]
[331516318,1720445894252,-500.0,0.00051232,120]
[331516319,1720445894352,-500.0,0.00051232,120]
[331516320,1720445894453,-500.0,0.00051232,120]
[331516321,1720445894552,-500.0,0.00051232,120]
[331516322,1720445894647,-388.23610698,0.00051232,120]
[331516323,1720445894730,-349.81,0.00051232,120]
[331516324,1720445894825,-801.02,0.00051232,120]
[331516325,1720445894915,-500.0,0.00051232,120]
[331516326,1720445895013,-500.0,0.00051232,120]
[331516327,1720445895104,-500.0,0.00051232,120]
[331516328,1720445895194,-500.0,0.00051232,120]
[331516329,1720445895288,-500.0,0.00051232,120]
[331516330,1720445895382,-571.2,0.00051232,120]
[331516331,1720445895480,-500.0,0.00051232,120]
[331516332,1720445895580,-507.56,0.00051232,120]
[331516333,1720445895678,-500.0,0.00051232,120]
[331516334,1720445895773,-500.0,0.00051232,120]
[331516335,1720445895863,-500.0,0.00051232,120]
[331516336,1720445895961,-500.0,0.00051232,120]
[331516337,1720445896053,-958.56,0.00051232,120]
[331516338,1720445896142,-500.0,0.00051232,120]
[331516339,1720445896230,-155.51654115,0.00051477,60]
[331516340,1720445896318,-500.0,0.00051506,120]
[331516341,1720445896408,-500.0,0.00051506,120]
[331516342,1720445896503,-500.0,0.00051506,120]
[331516343,1720445896602,-500.0,0.00051506,120]
[331516344,1720445896699,-291.9,0.00051506,120]
[331516345,1720445896790,-500.0,0.00051506,120]
[331516346,1720445896880,-500.0,0.00051506,120]
[331516347,1720445896978,-1546.12,0.00051506,120]
[331516348,1720445897075,-500.0,0.00051506,120]
[331516349,1720445897176,-500.0,0.00051506,120]
[331516350,1720445897270,-500.0,0.00051506,120]
[331516351,1720445897364,-500.0,0.00051506,120]
[331516352,1720445897452,-500.0,0.00051506,120]
[331516353,1720445897540,-505.36,0.00051506,120]
[331516354,1720445897633,-500.0,0.00051506,120]
[331516355,1720445897727,-512.32,0.00051506,120]
[331516356,1720445897819,-500.0,0.00051506,120]
[331516357,1720445897912,-870.97,0.00051506,120]
[331516358,1720445898004,-500.0,0.00051506,120]
[331516359,1720445898092,-500.0,0.00051506,120]
[331516360,1720445898180,-500.0,0.00051506,120]
[331516361,1720445898283,-500.0,0.00051506,120]
[331516362,1720445898386,-500.0,0.00051506,120]
[331516363,1720445898482,-801.02,0.00051506,120]
[331516364,1720445898573,-500.0,0.00051506,120]
[331516365,1720445898669,-500.0,0.00051506,120]
[331516366,1720445898766,-500.0,0.00051506,120]
[331516367,1720445898860,-500.0,0.00051506,120]
[331516368,1720445898966,-486.74205588,0.00051506,120]
[331516369,1720445899075,-571.2,0.00051506,120]
[331516370,1720445899183,-500.0,0.00051506,120]
[331516371,1720445899400,-507.56,0.00051506,120]
[331516372,1720445899510,-500.0,0.00051506,120]
[331516373,1720445899623,-500.0,0.00051506,120]
[331516374,1720445899733,-500.0,0.00051506,120]
[331516375,1720445899838,-500.0,0.00051506,120]
[331516376,1720445899942,-958.56,0.00051506,120]
[331516377,1720445900041,-500.0,0.00051506,120]
[331516378,1720445900143,-214.76863724,0.00051539,60]
[331516379,1720445900238,-1003.14,0.0005175,55]
[331516380,1720445900333,-500.0,0.0005178,120]
[331516381,1720445900428,-500.0,0.0005178,120]
[331516382,1720445900518,-500.0,0.0005178,120]
[331516383,1720445900609,-500.0,0.0005178,120]
[331516384,1720445900700,-291.9,0.0005178,120]
[331516385,1720445900789,-500.0,0.0005178,120]
[331516386,1720445900877,-500.0,0.0005178,120]
[331516387,1720445900966,-1546.12,0.0005178,120]
[331516388,1720445901054,-500.0,0.0005178,120]
[331516389,1720445901141,-500.0,0.0005178,120]
[331516390,1720445901230,-500.0,0.0005178,120]
[331516391,1720445901318,-500.0,0.0005178,120]
[331516392,1720445901406,-500.0,0.0005178,120]
[331516393,1720445901495,-505.36,0.0005178,120]
[331516394,1720445901586,-500.0,0.0005178,120]
[331516395,1720445901679,-512.32,0.0005178,120]
[331516396,1720445901769,-500.0,0.0005178,120]
[331516397,1720445901861,-870.97,0.0005178,120]
[331516398,1720445901959,-500.0,0.0005178,120]
[331516399,1720445902055,-500.0,0.0005178,120]
[331516400,1720445902152,-196.49832084,0.0005178,120]
[331516401,1720445902251,-500.0,0.0005178,120]
[331516402,1720445902354,-500.0,0.0005178,120]
[331516403,1720445902450,-801.02,0.0005178,120]
[331516404,1720445902543,-402.54707952,0.0005178,120]
[331516405,1720445902641,-500.0,0.0005178,120]
[331516406,1720445902733,-500.0,0.0005178,120]
[331516407,1720445902825,-500.0,0.0005178,120]
[331516408,1720445902916,-1700.58,0.0005178,120]
[331516409,1720445903014,-571.2,0.0005178,120]
[331516410,1720445903106,-500.0,0.0005178,120]
[331516411,1720445903197,-507.56,0.0005178,120]
[331516412,1720445903302,-500.0,0.0005178,120]
[331516413,1720445903411,-500.0,0.0005178,120]
[331516414,1720445903521,-500.0,0.0005178,120]
[331516415,1720445903616,-500.0,0.0005178,120]
[331516416,1720445903715,-958.56,0.0005178,120]
[331516417,1720445903812,-500.0,0.0005178,120]
[331516418,1720445903908,-2000.0,0.00051781,30]
[331516419,1720445904004,-150.12346758,0.00051873,60]
[331516420,1720445904106,-150.1234676,0.00051962,60]
[331516421,1720445904208,-50000.0,0.00052,42]
[331516422,1720445904312,-50000.0,0.00052,52]
[331516423,1720445904420,-500.0,0.00052054,120]
[331516424,1720445904532,-500.0,0.00052054,120]
[331516425,1720445904631,-500.0,0.00052054,120]
[331516426,1720445904727,-291.9,0.00052054,120]
[331516427,1720445904827,-500.0,0.00052054,120]
[331516428,1720445904931,-500.0,0.00052054,120]
[331516429,1720445905034,-1546.12,0.00052054,120]
[331516430,1720445905134,-500.0,0.00052054,120]
[331516431,1720445905239,-500.0,0.00052054,120]
[331516432,1720445905342,-500.0,0.00052054,120]
[331516433,1720445905443,-500.0,0.00052054,120]
[331516434,1720445905543,-500.0,0.00052054,120]
[331516435,1720445905644,-505.36,0.00052054,120]
[331516436,1720445905745,-500.0,0.00052054,120]
[331516437,1720445905840,-512.32,0.00052054,120]
[331516438,1720445905936,-500.0,0.00052054,120]
[331516439,1720445906032,-500.0,0.00052054,120]
[331516440,1720445906129,-870.97,0.00052054,120]
[331516441,1720445906223,-500.0,0.00052054,120]
[331516442,1720445906317,-500.0,0.00052054,120]
[331516443,1720445906412,-500.0,0.00052054,120]
[331516444,1720445906509,-500.0,0.00052054,120]
[331516445,1720445906610,-801.02,0.00052054,120]
[331516446,1720445906703,-500.0,0.00052054,120]
[331516447,1720445906796,-500.0,0.00052054,120]
[331516448,1720445906893,-500.0,0.00052054,120]
[331516449,1720445906993,-571.2,0.00052054,120]
[331516450,1720445907090,-500.0,0.00052054,120]
[331516451,1720445907185,-507.56,0.00052054,120]
[331516452,1720445907279,-500.0,0.00052054,120]
[331516453,1720445907371,-500.0,0.00052054,120]
[331516454,1720445907461,-500.0,0.00052054,120]
[331516455,1720445907553,-3501.0,0.00052054,120]
[331516456,1720445907644,-500.0,0.00052054,120]
[331516457,1720445907733,-958.56,0.00052054,120]
[331516458,1720445907825,-500.0,0.00052054,120]
[331516459,1720445907918,-151.53425502,0.00052146,60]
[331516460,1720445908239,-152.48368614,0.00052164,60]
[331516461,1720445908348,-156.38550522,0.00052222,60]
[331516462,1720445908456,-500.0,0.00052328,120]
[331516463,1720445908554,-500.0,0.00052328,120]
[331516464,1720445908656,-500.0,0.00052328,120]
[331516465,1720445908757,-291.9,0.00052328,120]
[331516466,1720445908859,-500.0,0.00052328,120]
[331516467,1720445908969,-500.0,0.00052328,120]
[331516468,1720445909077,-1546.12,0.00052328,120]
[331516469,1720445909179,-500.0,0.00052328,120]
[331516470,1720445909287,-500.0,0.00052328,120]
[331516471,1720445909391,-500.0,0.00052328,120]
[331516472,1720445909493,-500.0,0.00052328,120]
[331516473,1720445909595,-500.0,0.00052328,120]
[331516474,1720445909695,-505.36,0.00052328,120]
[331516475,1720445909801,-500.0,0.00052328,120]
[331516476,1720445909904,-512.32,0.00052328,120]
[331516477,1720445909995,-500.0,0.00052328,120]
[331516478,1720445910086,-870.97,0.00052328,120]
[331516479,1720445910184,-500.0,0.00052328,120]
[331516480,1720445910274,-500.0,0.00052328,120]
[331516481,1720445910363,-500.0,0.00052328,120]
[331516482,1720445910453,-500.0,0.00052328,120]
[331516483,1720445910541,-801.02,0.00052328,120]
[331516484,1720445910627,-426.09,0.00052328,120]
[331516485,1720445910720,-500.0,0.00052328,120]
[331516486,1720445910814,-571.2,0.00052328,120]
[331516487,1720445910912,-500.0,0.00052328,120]
[331516488,1720445911007,-507.56,0.00052328,120]
[331516489,1720445911100,-500.0,0.00052328,120]
[331516490,1720445911192,-500.0,0.00052328,120]
[331516491,1720445911288,-500.0,0.00052328,120]
[331516492,1720445911377,-3501.0,0.00052328,120]
[331516493,1720445911467,-500.0,0.00052328,120]
[331516494,1720445911554,-958.56,0.00052328,120]
[331516495,1720445911641,-500.0,0.00052328,120]
[331516496,1720445911726,-156.81855096,0.00052386,60]
[331516497,1720445911812,-156.43409628,0.00052465,60]
[331516498,1720445911903,-500.0,0.00052602,120]
[331516499,1720445911990,-155.22166912,0.00052602,120]
[331516500,1720445912077,-500.0,0.00052602,120]
[331516501,1720445912163,-291.9,0.00052602,120]
[331516502,1720445912248,-500.0,0.00052602,120]
[331516503,1720445912332,-500.0,0.00052602,120]
[331516504,1720445912415,-1546.12,0.00052602,120]
[331516505,1720445912498,-500.0,0.00052602,120]
[331516506,1720445912582,-500.0,0.00052602,120]
[331516507,1720445912672,-500.0,0.00052602,120]
[331516508,1720445912782,-500.0,0.00052602,120]
[331516509,1720445912884,-500.0,0.00052602,120]
[331516510,1720445912983,-505.36,0.00052602,120]
[331516511,1720445913069,-500.0,0.00052602,120]
[331516512,1720445913158,-512.32,0.00052602,120]
[331516513,1720445913254,-500.0,0.00052602,120]
[331516514,1720445913352,-870.97,0.00052602,120]
[331516515,1720445913448,-500.0,0.00052602,120]
[331516516,1720445913549,-500.0,0.00052602,120]
[331516517,1720445913644,-500.0,0.00052602,120]
[331516518,1720445913737,-500.0,0.00052602,120]
[331516519,1720445913830,-801.02,0.00052602,120]
[331516520,1720445913925,-500.0,0.00052602,120]
[331516521,1720445914021,-571.2,0.00052602,120]
[331516522,1720445914121,-500.0,0.00052602,120]
[331516523,1720445914223,-507.56,0.00052602,120]
[331516524,1720445914320,-500.0,0.00052602,120]
[331516525,1720445914416,-500.0,0.00052602,120]
[331516526,1720445914513,-500.0,0.00052602,120]
[331516527,1720445914605,-3501.0,0.00052602,120]
[331516528,1720445914701,-500.0,0.00052602,120]
[331516529,1720445914793,-958.56,0.00052602,120]
[331516530,1720445914884,-500.0,0.00052602,120]
[331516531,1720445914977,-151.14628752,0.0005261,60]
[331516532,1720445915108,-214.76863724,0.00052651,60]
[331516533,1720445915200,-170.6329079,0.00052665,60]
[331516534,1720445915295,-200.0,0.000527,31]
[331516535,1720445915390,-1003.14,0.00052725,63]
[331516536,1720445915485,-156.43409628,0.00052756,60]
[331516537,1720445915576,-500.0,0.00052876,120]
[331516538,1720445915666,-2500.0,0.00052876,120]
[331516539,1720445915758,-2500.0,0.00052876,120]
[331516540,1720445915847,-2500.0,0.00052876,120]
[331516541,1720445915941,-2500.0,0.00052876,120]
[331516542,1720445916034,-2500.0,0.00052876,120]
[331516543,1720445916128,-2500.0,0.00052876,120]
[331516544,1720445916223,-2500.0,0.00052876,120]
[331516545,1720445916316,-2500.0,0.00052876,120]
[331516546,1720445916411,-2500.0,0.00052876,120]
[331516547,1720445916510,-1130.37148832,0.00052876,120]
[331516548,1720445916608,-500.0,0.00052876,120]
[331516549,1720445916696,-291.9,0.00052876,120]
[331516550,1720445916786,-500.0,0.00052876,120]
[331516551,1720445916874,-500.0,0.00052876,120]
[331516552,1720445916966,-1546.12,0.00052876,120]
[331516553,1720445917058,-500.0,0.00052876,120]
[331516554,1720445917150,-500.0,0.00052876,120]
[331516555,1720445917244,-500.0,0.00052876,120]
[331516556,1720445917339,-500.0,0.00052876,120]
[331516557,1720445917441,-500.0,0.00052876,120]
[331516558,1720445917535,-505.36,0.00052876,120]
[331516559,1720445917626,-500.0,0.00052876,120]
[331516560,1720445917722,-512.32,0.00052876,120]
[331516561,1720445917819,-500.0,0.00052876,120]
[331516562,1720445917916,-870.97,0.00052876,120]
[331516563,1720445918014,-500.0,0.00052876,120]
[331516564,1720445918106,-500.0,0.00052876,120]
[331516565,1720445918195,-500.0,0.00052876,120]
[331516566,1720445918287,-253.59,0.00052876,120]
[331516567,1720445918378,-801.02,0.00052876,120]
[331516568,1720445918470,-317.11,0.00052876,120]
[331516569,1720445918563,-1700.58,0.00052876,120]
[331516570,1720445918655,-571.2,0.00052876,120]
[331516571,1720445918748,-500.0,0.00052876,120]
[331516572,1720445918840,-507.56,0.00052876,120]
[331516573,1720445918942,-500.0,0.00052876,120]
[331516574,1720445919041,-500.0,0.00052876,120]
[331516575,1720445919158,-500.0,0.00052876,120]
[331516576,1720445919268,-3501.0,0.00052876,120]
[331516577,1720445919370,-500.0,0.00052876,120]
[331516578,1720445919474,-958.56,0.00052876,120]
[331516579,1720445919582,-500.0,0.00052876,120]
[331516580,1720445919692,-50000.0,0.00053,53]
[331516581,1720445919800,-100000.0,0.00053,43]
[331516582,1720445919908,-200.0,0.00053,31]
[331516583,1720445920010,-200.0,0.00053,31]
[331516584,1720445920111,-200.0,0.00053,31]
[331516585,1720445920211,-200.0,0.00053,31]
[331516586,1720445920310,-255.36423441,0.00053041,120]
[331516587,1720445920407,-500.0,0.0005315,120]
[331516588,1720445920506,-500.0,0.0005315,120]
[331516589,1720445920596,-291.9,0.0005315,120]
[331516590,1720445920694,-500.0,0.0005315,120]
[331516591,1720445920792,-500.0,0.0005315,120]
[331516592,1720445920891,-1546.12,0.0005315,120]
[331516593,1720445920990,-500.0,0.0005315,120]
[331516594,1720445921079,-500.0,0.0005315,120]
[331516595,1720445921168,-500.0,0.0005315,120]
[331516596,1720445921263,-500.0,0.0005315,120]
[331516597,1720445921356,-557.34,0.0005315,120]
[331516598,1720445921450,-505.36,0.0005315,120]
[331516599,1720445921543,-500.0,0.0005315,120]
[331516600,1720445921638,-512.32,0.0005315,120]
[331516601,1720445921735,-500.0,0.0005315,120]
[331516602,1720445921834,-870.97,0.0005315,120]
[331516603,1720445921937,-500.0,0.0005315,120]
[331516604,1720445922037,-543.83098265,0.0005315,120]
[331516605,1720445922134,-801.02,0.0005315,120]
[331516606,1720445922235,-571.2,0.0005315,120]
[331516607,1720445922334,-500.0,0.0005315,120]
[331516608,1720445922428,-507.56,0.0005315,120]
[331516609,1720445922522,-500.0,0.0005315,120]
[331516610,1720445922616,-500.0,0.0005315,120]
[331516611,1720445922709,-500.0,0.0005315,120]
[331516612,1720445922801,-3501.0,0.0005315,120]
[331516613,1720445922895,-500.0,0.0005315,120]
[331516614,1720445922992,-958.56,0.0005315,120]
[331516615,1720445923085,-500.0,0.0005315,120]
[331516616,1720445923188,-500.0,0.00053424,120]
[331516617,1720445923300,-500.0,0.00053424,120]
[331516618,1720445923408,-291.9,0.00053424,120]
[331516619,1720445923517,-500.0,0.00053424,120]
[331516620,1720445923623,-552.35,0.00053424,120]
[331516621,1720445923725,-1546.12,0.00053424,120]
[331516622,1720445923829,-500.0,0.00053424,120]
[331516623,1720445923927,-500.0,0.00053424,120]
[331516624,1720445924024,-500.0,0.00053424,120]
[331516625,1720445924125,-575.52,0.00053424,120]
[331516626,1720445924228,-505.36,0.00053424,120]
[331516627,1720445924330,-512.32,0.00053424,120]
[331516628,1720445924433,-500.0,0.00053424,120]
[331516629,1720445924540,-870.97,0.00053424,120]
[331516630,1720445924653,-500.0,0.00053424,120]
[331516631,1720445924764,-801.02,0.00053424,120]
[331516632,1720445924876,-571.2,0.00053424,120]
[331516633,1720445924992,-500.0,0.00053424,120]
[331516634,1720445925103,-507.56,0.00053424,120]
[331516635,1720445925211,-500.0,0.00053424,120]
[331516636,1720445925482,-500.0,0.00053424,120]
[331516637,1720445925591,-3501.0,0.00053424,120]
[331516638,1720445925693,-500.0,0.00053424,120]
[331516639,1720445925793,-958.56,0.00053424,120]
[331516640,1720445925896,-500.0,0.00053424,120]
[331516641,1720445925999,-170.66063789,0.00053482,60]
[331516642,1720445926103,-156.43409628,0.00053582,60]
[331516643,1720445926206,-500.0,0.00053698,120]
[331516644,1720445926312,-500.0,0.00053698,120]
[331516645,1720445926412,-291.9,0.00053698,120]
[331516646,1720445926514,-500.0,0.00053698,120]
[331516647,1720445926613,-1546.12,0.00053698,120]
[331516648,1720445926714,-500.0,0.00053698,120]
[331516649,1720445926812,-500.0,0.00053698,120]
[331516650,1720445926912,-500.0,0.00053698,120]
[331516651,1720445927014,-505.36,0.00053698,120]
[331516652,1720445927112,-512.32,0.00053698,120]
[331516653,1720445927213,-500.0,0.00053698,120]
[331516654,1720445927313,-870.97,0.00053698,120]
[331516655,1720445927413,-500.0,0.00053698,120]
[331516656,1720445927514,-801.02,0.00053698,120]
[331516657,1720445927613,-571.2,0.00053698,120]
[331516658,1720445927712,-500.0,0.00053698,120]
[331516659,1720445927812,-507.56,0.00053698,120]
[331516660,1720445927914,-500.0,0.00053698,120]
[331516661,1720445928013,-3501.0,0.00053698,120]
[331516662,1720445928115,-500.0,0.00053698,120]
[331516663,1720445928216,-958.56,0.00053698,120]
[331516664,1720445928322,-500.0,0.00053698,120]
[331516665,1720445928427,-622.0,0.000537,30]
[331516666,1720445928531,-1003.14,0.000537,70]
[331516667,1720445928631,-759.0,0.000537,30]
[331516668,1720445928730,-156.81855096,0.00053709,60]
[331516669,1720445928834,-155.26671151,0.00053843,60]
[331516670,1720445928938,-214.76863724,0.00053867,60]
[331516671,1720445929043,-155.2667117,0.00053887,60]
[331516672,1720445929144,-500.0,0.00053972,90]
[331516673,1720445929244,-500.0,0.00053972,120]
[331516674,1720445929348,-500.0,0.00053972,120]
[331516675,1720445929454,-291.9,0.00053972,120]
[331516676,1720445929559,-500.0,0.00053972,120]
[331516677,1720445929661,-1546.12,0.00053972,120]
[331516678,1720445929762,-500.0,0.00053972,120]